fUST/lending_fUST_20260107
["ID","MTS","AMOUNT","RATE_DAILY","PERIOD"]
[400712228,1767786662544,-1076.6,0.00027945,2]
[400712229,1767786662554,-500.0,0.00027945,2]
[400712230,1767786662563,-151.0,0.00027945,7]
[400712231,1767786662572,-500.0,0.00027945,2]
[400712232,1767786662582,-500.0,0.00027945,2]
[400712233,1767786662592,-500.0,0.00027945,2]
[400712234,1767786662601,-500.0,0.00027945,2]
[400712235,1767786662612,-264.29186076,0.00027945,2]
[400712236,1767786662625,-689.83,0.00027945,2]
[400712237,1767786662637,-500.0,0.00027945,2]
[400712238,1767786662648,-300.0,0.00027945,7]
[400712239,1767786662659,-500.0,0.00027945,2]
[400712240,1767786662673,-300.0,0.00027945,7]
[400712241,1767786662683,-424.77874649,0.00027945,2]
[400712242,1767786662694,-300.0,0.00027945,7]
[400712243,1767786662704,-836.4,0.00027945,2]
[400712244,1767786662713,-300.0,0.00027945,7]
[400712245,1767786662723,-500.0,0.00027945,2]
[400712246,1767786662733,-151.531548,0.00027945,7]
[400712247,1767786662743,-151.881717,0.00027945,7]
[400712248,1767786662753,-187.815389,0.00027945,7]
[400712249,1767786662762,-500.0,0.00027945,2]
[400712250,1767786662771,-330.59045828,0.00027945,2]
[400712251,1767786662781,-187.815389,0.00027945,7]
[400712252,1767786662790,-500.0,0.00027945,2]
[400712253,1767786662800,-500.0,0.00027945,2]
[400712254,1767786662809,-151.0,0.00027945,2]
[400712255,1767786662820,-500.0,0.00027945,2]
[400712256,1767786662830,-500.0,0.00027945,2]
[400712257,1767786662839,-187.815389,0.00027945,7]
[400712258,1767786662850,-151.0,0.00027945,7]
[400712259,1767786662859,-500.0,0.00027945,2]
[400712260,1767786662869,-187.815389,0.00027945,7]
[400712261,1767786662878,-500.0,0.00027945,2]
[400712262,1767786662888,-595.34826852,0.00027945,2]
[400712263,1767786662897,-567.03939985,0.00027945,2]
[400712264,1767786662906,-500.0,0.00027945,2]
[400712265,1767786662915,-500.0,0.00027945,2]
[400712266,1767786662924,-500.0,0.00027945,2]
[400712267,1767786662933,-500.0,0.00027945,2]
[400712268,1767786662943,-500.0,0.00027945,2]
[400712269,1767786662953,-500.0,0.00027945,2]
[400712270,1767786662962,-151.0,0.00027945,7]
[400712271,1767786662972,-500.0,0.00027945,2]
[400712272,1767786662981,-500.0,0.00027945,2]
[400712273,1767786662991,-151.0,0.00027945,7]
[400712274,1767786663000,-500.0,0.00027945,2]
[400712275,1767786663010,-606.89944653,0.00027945,2]
[400712276,1767786663020,-500.0,0.00027945,2]
[400712277,1767786663030,-212.3812862,0.00027945,2]
[400712278,1767786663039,-612.995739,0.00027945,7]
[400712279,1767786663049,-500.0,0.00027945,2]
[400712280,1767786663059,-500.0,0.00027945,2]
[400712281,1767786663069,-612.995739,0.00027945,7]
[400712282,1767786663079,-612.995739,0.00027945,7]
[400712283,1767786663089,-500.0,0.00027945,2]
[400712284,1767786663099,-612.995739,0.00027945,7]
[400712285,1767786663109,-500.0,0.00027945,2]
[400712286,1767786663119,-500.0,0.00027945,2]
[400712287,1767786663129,-500.0,0.00027945,2]
[400712288,1767786663138,-500.0,0.00027945,2]
[400712289,1767786663148,-604.63317786,0.00027945,2]
[400712290,1767786663157,-797.84,0.00027945,2]
[400712291,1767786663167,-242.23761969,0.00027945,2]
[400712292,1767786663176,-690.11,0.00027945,2]
[400712293,1767786663186,-520.98274891,0.00027945,2]
[400712294,1767786663200,-500.0,0.00027945,2]
[400712295,1767786663209,-500.0,0.00027945,2]
[400712296,1767786663219,-500.0,0.00027945,2]
[400712297,1767786663228,-500.54956365,0.00027945,2]
[400712298,1767786663380,-500.0,0.00027945,2]
[400712299,1767786663390,-500.0,0.00027945,2]
[400712300,1767786663399,-500.0,0.00027945,2]
[400712301,1767786663409,-500.0,0.00027945,2]
[400712302,1767786663418,-215.570059,0.00027945,7]
[400712303,1767786663428,-500.0,0.00027945,2]
[400712304,1767786663437,-500.0,0.00027945,2]
[400712305,1767786663447,-3088.57,0.00027945,2]
[400712306,1767786663457,-215.570059,0.00027945,7]
[400712307,1767786663467,-500.0,0.00027945,2]
[400712308,1767786663480,-500.0,0.00027945,2]
[400712309,1767786663493,-226.840481,0.00027945,7]
[400712310,1767786663503,-215.570059,0.00027945,7]
[400712311,1767786663513,-206.665209,0.00027945,7]
[400712312,1767786663521,-500.0,0.00027945,2]
[400712313,1767786663531,-215.570059,0.00027945,7]
[400712314,1767786663540,-206.665209,0.00027945,7]
[400712315,1767786663550,-500.0,0.00027945,2]
[400712316,1767786663560,-206.665209,0.00027945,7]
[400712317,1767786663570,-157.31286406,0.00027945,2]
[400712318,1767786663579,-500.0,0.00027945,2]
[400712319,1767786663589,-153.400685,0.00027945,7]
[400712320,1767786663599,-206.665209,0.00027945,7]
[400712321,1767786663608,-500.0,0.00027945,2]
[400712322,1767786663617,-322.62576743,0.00027945,2]
[400712323,1767786663628,-500.0,0.00027945,2]
[400712324,1767786663637,-500.0,0.00027945,2]
[400712325,1767786663648,-500.0,0.00027945,2]
[400712326,1767786663658,-500.0,0.00027945,2]
[400712327,1767786663668,-500.0,0.00027945,2]
[400712328,1767786663678,-151.0,0.00027945,7]
[400712329,1767786663688,-634.815792,0.00027945,7]
[400712330,1767786663698,-151.0,0.00027945,7]
[400712331,1767786663707,-500.0,0.00027945,2]
[400712332,1767786663716,-634.815792,0.00027945,7]
[400712333,1767786663725,-500.0,0.00027945,2]
[400712334,1767786663734,-500.0,0.00027945,2]
[400712335,1767786663744,-151.0,0.00027945,7]
[400712336,1767786663753,-634.815792,0.00027945,7]
[400712337,1767786663763,-500.0,0.00027945,2]
[400712338,1767786663772,-151.0,0.00027945,7]
[400712339,1767786663781,-500.0,0.00027945,2]
[400712340,1767786663790,-634.815792,0.00027945,7]
[400712341,1767786663801,-151.0,0.00027945,7]
[400712342,1767786663810,-500.0,0.00027945,2]
[400712343,1767786663819,-151.0,0.00027945,7]
[400712344,1767786663828,-500.0,0.00027945,2]
[400712345,1767786663838,-500.0,0.00027945,2]
[400712346,1767786663848,-500.0,0.00027945,2]
[400712347,1767786663858,-512.04920127,0.00027945,2]
[400712348,1767786663868,-151.0,0.00027945,7]
[400712349,1767786663878,-1000.0,0.00027945,5]
[400712350,1767786663887,-750.0,0.00027945,5]
[400712351,1767786663897,-250.0,0.00027945,5]
[400712352,1767786663906,-250.0,0.00027945,5]
[400712353,1767786663915,-500.0,0.00027946,2]
[400712354,1767786663925,-500.0,0.00027946,2]
[400712355,1767786663935,-2100.0,0.00027972,7]
[400712356,1767786663944,-361.5009519,0.00027996,2]
[400712357,1767786663954,-1041.66666667,0.00028,7]
[400712358,1767786663963,-1041.66666667,0.00028,3]
[400712359,1767786663973,-2379.00179332,0.00028078,2]
[400712360,1767786663982,-500.0,0.00028083,2]
[400712361,1767786663992,-364.24644296,0.00028083,2]
[400712362,1767786664001,-3630.31049009,0.0002811,2]
[400712363,1767786664011,-8168.19860271,0.0002811,2]
[400712364,1767786664021,-10000.0,0.00028119,2]
[400712365,1767786664031,-151.0,0.00028119,7]
[400712366,1767786664040,-412.629762,0.00028119,7]
[400712367,1767786664049,-412.629762,0.00028119,7]
[400712368,1767786664059,-412.629762,0.00028119,7]
[400712369,1767786664068,-151.0,0.00028119,7]
[400712370,1767786664078,-412.629762,0.00028119,7]
[400712371,1767786664087,-151.0,0.00028168,7]
[400712372,1767786664097,-151.0,0.00028168,7]
[400712373,1767786664106,-151.0,0.00028168,7]
[400712374,1767786664115,-160.0,0.00028168,3]
[400712375,1767786664145,-160.0,0.00028168,3]
[400712376,1767786664162,-160.79089558,0.00028168,3]
[400712377,1767786664172,-151.0,0.00028168,3]
[400712378,1767786664181,-250.0,0.00028168,3]
[400712379,1767786664192,-250.0,0.00028168,3]
[400712380,1767786664201,-151.0,0.00028168,3]
[400712381,1767786664210,-250.0,0.00028168,3]
[400712382,1767786664219,-250.0,0.00028168,3]
[400712383,1767786664228,-157.242965,0.00028168,3]
[400712384,1767786664239,-252.94566259,0.00028168,3]
[400712385,1767786664249,-250.0,0.00028168,3]
[400712386,1767786664259,-250.0,0.00028168,3]
[400712387,1767786664271,-250.0,0.00028168,3]
[400712388,1767786664280,-250.83955872,0.00028168,3]
[400712389,1767786664290,-514.84070869,0.00028168,3]
[400712390,1767786664299,-533.88981491,0.00028168,3]
[400712391,1767786664309,-553.64373807,0.00028168,3]
[400712392,1767786664319,-574.12855637,0.00028168,3]
[400712393,1767786664331,-595.37131296,0.00028168,3]
[400712394,1767786664342,-250.0,0.00028168,3]
[400712395,1767786664352,-617.40005154,0.00028168,3]
[400712396,1767786664361,-250.0,0.00028168,3]
[400712397,1767786664372,-640.24385345,0.00028168,3]
[400712398,1767786664382,-250.0,0.00028168,3]
[400712399,1767786664391,-663.93287602,0.00028168,3]
[400712400,1767786664400,-250.0,0.00028168,3]
[400712401,1767786664410,-688.49839244,0.00028168,3]
[400712402,1767786664420,-250.0,0.00028168,3]
[400712403,1767786664430,-713.97283296,0.00028168,3]
[400712404,1767786664439,-151.0,0.00028168,3]
[400712405,1767786664448,-250.0,0.00028168,3]
[400712406,1767786664459,-740.38982778,0.00028168,3]
[400712407,1767786664468,-302.29046048,0.00028168,3]
[400712408,1767786664478,-617.86497631,0.00028168,3]
[400712409,1767786664487,-500.0,0.00028168,3]
[400712410,1767786664496,-500.0,0.00028168,3]
[400712411,1767786664505,-500.0,0.00028168,3]
[400712412,1767786664515,-500.0,0.00028168,3]
[400712413,1767786664524,-500.0,0.00028168,3]
[400712414,1767786664533,-2487.15318209,0.00028168,3]
[400712415,1767786664542,-500.0,0.00028168,3]
[400712416,1767786664552,-500.0,0.00028168,3]
[400712417,1767786664561,-2579.17784983,0.00028168,3]
[400712418,1767786664570,-2674.60743027,0.00028168,3]
[400712419,1767786664579,-364.53594477,0.00028168,3]
[400712420,1767786664588,-2773.56790519,0.00028168,3]
[400712421,1767786664597,-2876.18991768,0.00028168,3]
[400712422,1767786664607,-1500.0,0.00028168,3]
[400712423,1767786664616,-1500.0,0.00028168,3]
[400712424,1767786664626,-1500.0,0.00028168,3]
[400712425,1767786664635,-2982.60894464,0.00028168,3]
[400712426,1767786664645,-1500.0,0.00028168,3]
[400712427,1767786664654,-1189.60316379,0.00028168,3]
[400712428,1767786664663,-3092.96547559,0.00028168,3]
[400712429,1767786664672,-3207.40519818,0.00028168,3]
[400712430,1767786664681,-307.6,0.00028198,3]
[400712431,1767786664691,-10000.0,0.00028218,2]
[400712432,1767786664700,-10000.0,0.00028218,7]
[400712433,1767786664710,-3333.0958472,0.00028219,2]
[400712434,1767786664719,-362.31772232,0.00028219,2]
[400712435,1767786664728,-500.0,0.00028219,2]
[400712436,1767786664736,-175.1016287,0.00028219,2]
[400712437,1767786664746,-532.28969809,0.00028219,2]
[400712438,1767786664755,-584.55274678,0.00028219,2]
[400712439,1767786664764,-500.0,0.00028219,2]
[400712440,1767786664774,-559.4572558,0.00028219,2]
[400712441,1767786664783,-324.83913414,0.00028219,2]
[400712442,1767786664792,-557.84,0.00028219,2]
[400712443,1767786664801,-153.89876055,0.00028219,2]
[400712444,1767786664810,-500.0,0.00028219,2]
[400712445,1767786664820,-500.0,0.00028219,2]
[400712446,1767786664829,-500.0,0.00028219,2]
[400712447,1767786664839,-500.0,0.00028219,2]
[400712448,1767786664849,-500.0,0.00028219,2]
[400712449,1767786664859,-500.0,0.00028219,2]
[400712450,1767786664868,-576.28062762,0.00028219,2]
[400712451,1767786664878,-500.0,0.00028219,2]
[400712452,1767786664888,-500.0,0.00028219,2]
[400712453,1767786664897,-500.0,0.00028219,2]
[400712454,1767786664908,-500.0,0.00028219,2]
[400712455,1767786664917,-500.0,0.00028219,2]
[400712456,1767786664926,-500.0,0.00028219,2]
[400712457,1767786664936,-500.0,0.00028219,2]
[400712458,1767786664945,-500.0,0.00028219,2]
[400712459,1767786664955,-528.75905567,0.00028219,2]
[400712460,1767786664965,-500.0,0.00028219,2]
[400712461,1767786664975,-500.0,0.00028219,2]
[400712462,1767786664985,-500.0,0.00028219,2]
[400712463,1767786664995,-500.0,0.00028219,2]
[400712464,1767786665004,-500.0,0.00028219,2]
[400712465,1767786665013,-500.0,0.00028219,2]
[400712466,1767786665023,-560.99239782,0.00028219,2]
[400712467,1767786665033,-500.0,0.00028219,2]
[400712468,1767786665042,-529.98714243,0.00028219,2]
[400712469,1767786665052,-394.81585347,0.00028219,2]
[400712470,1767786665061,-500.0,0.00028219,2]
[400712471,1767786665070,-500.0,0.00028219,2]
[400712472,1767786665080,-500.0,0.00028219,2]
[400712473,1767786665089,-500.0,0.00028219,2]
[400712474,1767786665099,-1000.0,0.00028219,2]
[400712475,1767786665108,-500.0,0.00028219,2]
[400712476,1767786665117,-500.0,0.00028219,2]
[400712477,1767786665126,-500.0,0.00028219,2]
[400712478,1767786665135,-500.0,0.00028219,2]
[400712479,1767786665144,-500.0,0.00028219,2]
[400712480,1767786665153,-500.0,0.00028219,2]
[400712481,1767786665162,-500.0,0.00028219,2]
[400712482,1767786665171,-500.0,0.00028219,2]
[400712483,1767786665181,-500.0,0.00028219,2]
[400712484,1767786665192,-500.0,0.00028219,2]
[400712485,1767786665201,-500.0,0.00028219,2]
[400712486,1767786665210,-531.96903272,0.00028219,2]
[400712487,1767786665219,-500.0,0.00028219,2]
[400712488,1767786665229,-546.83794716,0.00028219,2]
[400712489,1767786665239,-500.0,0.00028219,2]
[400712490,1767786665248,-209.30011624,0.00028219,2]
[400712491,1767786665258,-500.0,0.00028219,2]
[400712492,1767786665270,-547.19616426,0.00028219,2]
[400712493,1767786665279,-559.55910914,0.00028219,2]
[400712494,1767786665289,-500.0,0.00028219,2]
[400712495,1767786665298,-500.0,0.00028219,2]
[400712496,1767786665307,-619.66757045,0.00028219,2]
[400712497,1767786665317,-913.08,0.00028219,2]
[400712498,1767786665327,-500.0,0.00028219,2]
[400712499,1767786665337,-500.0,0.00028219,2]
[400712500,1767786665346,-558.23184224,0.00028219,2]
[400712501,1767786665355,-523.89501623,0.00028219,2]
[400712502,1767786665364,-500.0,0.00028219,2]
[400712503,1767786665375,-500.0,0.00028219,2]
[400712504,1767786665384,-500.0,0.00028219,2]
[400712505,1767786665393,-500.0,0.00028219,2]
[400712506,1767786665402,-500.0,0.00028219,2]
[400712507,1767786665412,-167.701236,0.00028219,7]
[400712508,1767786665422,-297.211329,0.00028219,7]
[400712509,1767786665432,-500.0,0.00028219,2]
[400712510,1767786665442,-500.0,0.00028219,2]
[400712511,1767786665452,-500.0,0.00028219,2]
[400712512,1767786665460,-289.45163615,0.00028219,2]
[400712513,1767786665470,-253.66093416,0.00028219,2]
[400712514,1767786665479,-500.0,0.00028219,2]
[400712515,1767786665488,-500.0,0.00028219,2]
[400712516,1767786665498,-500.0,0.00028219,2]
[400712517,1767786665507,-1000.0,0.00028219,2]
[400712518,1767786665516,-151.0,0.00028219,7]
[400712519,1767786665525,-151.0,0.00028219,7]
[400712520,1767786665534,-151.0,0.00028219,7]
[400712521,1767786665543,-151.0,0.00028219,7]
[400712522,1767786665552,-333.40709598,0.00028219,2]
[400712523,1767786665562,-168.9738372,0.00028219,2]
[400712524,1767786665571,-151.0,0.00028219,7]
[400712525,1767786665581,-292.141919,0.00028219,7]
[400712526,1767786665594,-500.0,0.00028219,2]
[400712527,1767786665603,-500.0,0.00028219,2]
[400712528,1767786665613,-325.19691615,0.00028219,2]
[400712529,1767786665622,-151.0,0.00028219,7]
[400712530,1767786665632,-539.26030068,0.00028219,2]
[400712531,1767786665642,-500.0,0.00028219,2]
[400712532,1767786665653,-234.556182,0.00028219,7]
[400712533,1767786665667,-500.0,0.00028219,2]
[400712534,1767786665677,-497.08752961,0.00028219,2]
[400712535,1767786665686,-151.0,0.00028219,7]
[400712536,1767786665695,-151.0,0.00028219,7]
[400712537,1767786665704,-500.0,0.00028219,2]
[400712538,1767786665713,-500.0,0.00028219,2]
[400712539,1767786665723,-210.33072695,0.00028219,2]
[400712540,1767786665732,-500.0,0.00028219,2]
[400712541,1767786665741,-500.0,0.00028219,2]
[400712542,1767786665864,-500.0,0.00028219,2]
[400712543,1767786665874,-151.0,0.00028219,7]
[400712544,1767786665884,-151.0,0.00028219,7]
[400712545,1767786665894,-756.53,0.00028219,2]
[400712546,1767786665903,-151.0,0.00028219,7]
[400712547,1767786665914,-500.0,0.00028219,2]
[400712548,1767786665924,-500.0,0.00028219,2]
[400712549,1767786665933,-500.0,0.00028219,2]
[400712550,1767786665943,-500.0,0.00028219,2]
[400712551,1767786665952,-601.36,0.00028219,2]
[400712552,1767786665961,-500.0,0.00028219,2]
[400712553,1767786665972,-200.0,0.00028219,2]
[400712554,1767786665981,-500.0,0.00028219,2]
[400712555,1767786665990,-500.0,0.00028219,2]
[400712556,1767786666000,-500.0,0.00028219,2]
[400712557,1767786666010,-481.2305202,0.00028219,2]
[400712558,1767786666019,-500.0,0.00028219,2]
[400712559,1767786666029,-500.0,0.00028219,2]
[400712560,1767786666038,-531.09626607,0.00028219,2]
[400712561,1767786666048,-500.0,0.00028219,2]
[400712562,1767786666058,-500.0,0.00028219,2]
[400712563,1767786666069,-258.86599378,0.00028219,2]
[400712564,1767786666078,-500.0,0.00028219,2]
[400712565,1767786666088,-500.0,0.00028219,2]
[400712566,1767786666097,-500.0,0.00028219,2]
[400712567,1767786666107,-500.0,0.00028219,2]
[400712568,1767786666119,-500.0,0.00028219,2]
[400712569,1767786666128,-500.0,0.00028219,2]
[400712570,1767786666137,-151.0,0.00028219,7]
[400712571,1767786666147,-500.0,0.00028219,2]
[400712572,1767786666156,-500.0,0.00028219,2]
[400712573,1767786666166,-578.71930715,0.00028219,2]
[400712574,1767786666176,-500.0,0.00028219,2]
[400712575,1767786666185,-500.0,0.00028219,2]
[400712576,1767786666199,-461.57037593,0.00028219,2]
[400712577,1767786666208,-836.74,0.00028219,2]
[400712578,1767786666218,-500.0,0.00028219,2]
[400712579,1767786666227,-412.84936115,0.00028219,2]
[400712580,1767786666238,-500.0,0.00028219,2]
[400712581,1767786666247,-500.0,0.00028219,2]
[400712582,1767786666256,-235.97451712,0.00028219,2]
[400712583,1767786666266,-500.0,0.00028219,2]
[400712584,1767786666276,-500.0,0.00028219,2]
[400712585,1767786666285,-545.95922411,0.00028219,2]
[400712586,1767786666294,-280.77710998,0.00028219,2]
[400712587,1767786666303,-500.0,0.00028219,2]
[400712588,1767786666312,-500.0,0.00028219,2]
[400712589,1767786666323,-242.04293168,0.00028219,2]
[400712590,1767786666332,-500.0,0.00028219,2]
[400712591,1767786666341,-152.0,0.00028219,7]
[400712592,1767786666350,-152.0,0.00028219,7]
[400712593,1767786666360,-152.0,0.00028219,7]
[400712594,1767786666370,-500.0,0.00028219,2]
[400712595,1767786666379,-152.0,0.00028219,7]
[400712596,1767786666389,-500.0,0.00028219,2]
[400712597,1767786666398,-500.0,0.00028219,2]
[400712598,1767786666408,-152.0,0.00028219,7]
[400712599,1767786666417,-507.36052564,0.00028219,2]
[400712600,1767786666426,-152.0,0.00028219,7]
[400712601,1767786666435,-500.0,0.00028219,2]
[400712602,1767786666445,-500.0,0.00028219,2]
[400712603,1767786666454,-152.0,0.00028219,7]
[400712604,1767786666464,-189.80913955,0.00028219,7]
[400712605,1767786666474,-152.0,0.00028219,7]
[400712606,1767786666484,-500.0,0.00028219,2]
[400712607,1767786666493,-500.0,0.00028219,2]
[400712608,1767786666502,-500.0,0.00028219,2]
[400712609,1767786666512,-500.0,0.00028219,2]
[400712610,1767786666521,-500.0,0.00028219,2]
[400712611,1767786666531,-3962.5,0.00028219,2]
[400712612,1767786666540,-500.0,0.00028219,2]
[400712613,1767786666548,-582.84,0.00028219,2]
[400712614,1767786666558,-500.0,0.00028219,2]
[400712615,1767786666567,-500.0,0.00028219,2]
[400712616,1767786666576,-500.0,0.00028219,2]
[400712617,1767786666586,-525.31959947,0.00028219,2]
[400712618,1767786666595,-500.0,0.00028219,2]
[400712619,1767786666604,-500.0,0.00028219,2]
[400712620,1767786666613,-500.0,0.00028219,2]
[400712621,1767786666623,-201.87565185,0.00028219,2]
[400712622,1767786666632,-500.0,0.00028219,2]
[400712623,1767786666641,-604.5691419,0.00028219,2]
[400712624,1767786666651,-178.56719036,0.00028219,2]
[400712625,1767786666660,-500.0,0.00028219,2]
[400712626,1767786666670,-246.34601962,0.00028219,2]
[400712627,1767786666679,-576.51854464,0.00028219,2]
[400712628,1767786666689,-500.0,0.00028219,2]
[400712629,1767786666698,-500.0,0.00028219,2]
[400712630,1767786666707,-500.0,0.00028219,2]
[400712631,1767786666716,-500.0,0.00028219,2]
[400712632,1767786666726,-500.0,0.00028219,2]
[400712633,1767786666735,-500.0,0.00028219,2]
[400712634,1767786666744,-725.03,0.00028219,2]
[400712635,1767786666753,-500.0,0.00028219,2]
[400712636,1767786666762,-292.0,0.00028219,2]
[400712637,1767786666771,-2251.87,0.00028219,2]
[400712638,1767786666780,-500.0,0.00028219,2]
[400712639,1767786666790,-500.0,0.00028219,2]
[400712640,1767786666801,-563.87773435,0.00028219,2]
[400712641,1767786666810,-500.0,0.00028219,2]
[400712642,1767786666820,-574.24165646,0.00028219,2]
[400712643,1767786666829,-500.0,0.00028219,2]
[400712644,1767786666838,-956.27,0.00028219,2]
[400712645,1767786666847,-500.0,0.00028219,2]
[400712646,1767786666857,-500.0,0.00028219,2]
[400712647,1767786666866,-443.89076946,0.00028219,2]
[400712648,1767786666876,-345.3181151,0.00028219,2]
[400712649,1767786666886,-528.5328738,0.00028219,2]
[400712650,1767786666895,-637.59,0.00028219,2]
[400712651,1767786666904,-235.37622654,0.00028219,2]
[400712652,1767786666914,-500.0,0.00028219,2]
[400712653,1767786666924,-500.0,0.00028219,2]
[400712654,1767786666933,-218.66129606,0.00028219,2]
[400712655,1767786666943,-588.39283623,0.00028219,2]
[400712656,1767786666951,-453.30260385,0.00028219,2]
[400712657,1767786666960,-500.0,0.00028219,2]
[400712658,1767786666970,-500.0,0.00028219,2]
[400712659,1767786666979,-500.0,0.00028219,2]
[400712660,1767786666988,-186.99690557,0.00028219,2]
[400712661,1767786666997,-500.0,0.00028219,2]
[400712662,1767786667006,-556.73214678,0.00028219,2]
[400712663,1767786667016,-437.57170781,0.00028219,2]
[400712664,1767786667025,-500.0,0.00028219,2]
[400712665,1767786667035,-500.0,0.00028219,2]
[400712666,1767786667044,-500.0,0.00028219,2]
[400712667,1767786667053,-500.0,0.00028219,2]
[400712668,1767786667062,-500.0,0.00028219,2]
[400712669,1767786667071,-500.0,0.00028219,2]
[400712670,1767786667080,-500.0,0.00028219,2]
[400712671,1767786667090,-500.0,0.00028219,2]
[400712672,1767786667101,-661.34,0.00028219,2]
[400712673,1767786667110,-927.69,0.00028219,2]
[400712674,1767786667120,-500.0,0.00028219,2]
[400712675,1767786667130,-615.69390191,0.00028219,2]
[400712676,1767786667139,-500.0,0.00028219,2]
[400712677,1767786667150,-500.0,0.00028219,2]
[400712678,1767786667159,-500.0,0.00028219,2]
[400712679,1767786667170,-500.0,0.00028219,2]
[400712680,1767786667179,-375.44951632,0.00028219,2]
[400712681,1767786667191,-500.0,0.00028219,2]
[400712682,1767786667205,-4613.91,0.00028219,2]
[400712683,1767786667214,-231.925611,0.00028219,2]
[400712684,1767786667223,-500.0,0.00028219,2]
[400712685,1767786667235,-500.0,0.00028219,2]
[400712686,1767786667244,-500.0,0.00028219,2]
[400712687,1767786667253,-500.0,0.00028219,2]
[400712688,1767786667263,-500.0,0.00028219,2]
[400712689,1767786667272,-500.0,0.00028219,2]
[400712690,1767786667281,-500.0,0.00028219,2]
[400712691,1767786667290,-500.0,0.00028219,2]
[400712692,1767786667299,-500.0,0.00028219,2]
[400712693,1767786667309,-500.0,0.00028219,2]
[400712694,1767786667318,-500.0,0.00028219,2]
[400712695,1767786667328,-14651.58,0.00028219,2]
[400712696,1767786667337,-500.0,0.00028219,2]
[400712697,1767786667346,-500.0,0.00028219,2]
[400712698,1767786667357,-333.7260999,0.00028219,2]
[400712699,1767786667366,-500.0,0.00028219,2]
[400712700,1767786667379,-909.99,0.00028219,2]
[400712701,1767786667389,-297.98489673,0.00028219,2]
[400712702,1767786667399,-186.63222322,0.00028219,2]
[400712703,1767786667409,-500.0,0.00028219,2]
[400712704,1767786667421,-500.0,0.00028219,2]
[400712705,1767786667431,-397.60413058,0.00028219,2]
[400712706,1767786667442,-334.58364315,0.00028219,2]
[400712707,1767786667452,-500.0,0.00028219,2]
[400712708,1767786667462,-500.0,0.00028219,2]
[400712709,1767786667471,-534.78953106,0.00028219,2]
[400712710,1767786667480,-500.0,0.00028219,2]
[400712711,1767786667489,-500.0,0.00028219,2]
[400712712,1767786667499,-2787.6,0.00028219,2]
[400712713,1767786667508,-500.0,0.00028219,2]
[400712714,1767786667517,-583.04293387,0.00028219,2]
[400712715,1767786667528,-392.07978129,0.00028219,2]
[400712716,1767786667538,-208.54613436,0.00028219,2]
[400712717,1767786667548,-500.0,0.00028219,2]
[400712718,1767786667558,-500.0,0.00028219,2]
[400712719,1767786667567,-500.0,0.00028219,2]
[400712720,1767786667577,-500.0,0.00028219,2]
[400712721,1767786667587,-500.0,0.00028219,2]
[400712722,1767786667596,-500.0,0.00028219,2]
[400712723,1767786667605,-500.0,0.00028219,2]
[400712724,1767786667615,-500.0,0.00028219,2]
[400712725,1767786667626,-500.0,0.00028219,2]
[400712726,1767786667635,-500.0,0.00028219,2]
[400712727,1767786667645,-550.76751835,0.00028219,2]